[Event "7th Leer Open-A 2024"]
[Site "Leer"]
[Date "2024.10.31"]
[Round "1.49"]
[White "Jakob, Matthias"]
[Black "Weirauch, Kevin"]
[Result "0-1"]
[ECO "A45"]
[WhiteElo "2070"]
[BlackElo "1850"]
[Annotator "RC"]
[PlyCount "70"]
[EventDate "2024.10.14"]
[EventType "swiss"]
[EventCountry "GER"]
[SourceTitle "playchess.com"]
[Source "ChessBase"]
[SourceQuality "1"]
[TimeControl "40/5400+30:900+30"]

1. d4 {[%emt 0:00:03]} Nf6 {[%emt 0:00:13]} 2. Nc3 {[%emt 0:00:08]} d6 {[%emt 0:01:31]} 3. Bf4 {[%emt 0:00:52]} g6 {[%emt 0:00:52]} 4. e3 {[%emt 0:00:06]} Bg7 {[%emt 0:00:31]} 5. h4 {[%emt 0:00:11]} h5 {[%emt 0:05:31]} 6. Qd2 {[%emt 0:03:15]} Nbd7 {[%emt 0:05:33]} 7. O-O-O {[%emt 0:01:22]} a5 {[%emt 1:19:49]} 8. Nf3 c6 {[%emt 0:00:00]} 9. e4 {[%emt 0:04:50]} Ng4 {[%emt 0:01:00]} 10. Ng5 {[%emt 0:28:21]} Nb6 {[%emt 0:00:00]} 11. f3 {[%emt 0:01:08]} Nf6 {[%emt 0:00:00]} 12. Qe1 {[%emt 0:05:54]} O-O {[%emt 0:00:00]} 13. Be2 {[%emt 0:04:58]} Qc7 {[%emt 0:00:00]} 14. g4 {[%emt 0:04:57]} e5 {[%emt 0:00:00]} 15. dxe5 {[%emt 0:01:02]} dxe5 {[%emt 0:00:00]} 16. Be3 {[%emt 0:00:12]} Bh6 {[%emt 0:00:00]} 17. Qg1 {[%emt 0:04:31]} Nbd7 {[%emt 0:00:00]} 18. Kb1 {[%emt 0:02:57]} Bg7 {[%emt 0:00:00]} 19. Qg3 {[%emt 0:04:20]} b5 {[%emt 0:00:00]} 20. f4 {[%emt 0:00:59]} Nxg4 {[%emt 0:00:00]} 21. Bxg4 {[%emt 0:00:36]} hxg4 {[%emt 0:00:00]} 22. f5 {[%emt 0:01:24]} Nf6 {[%emt 0:00:00]} 23. Bc5 {[%emt 0:03:48]} Re8 {[%emt 0:00:00]} 24. fxg6 {[%emt 0:02:27]} fxg6 {[%emt 0:00:00]} 25. Nxb5 {[%emt 0:19:27]} cxb5 {[%emt 0:00:00]} 26. Qb3+ {[%emt 0:00:06]} Kh8 {[%emt 0:00:00]} 27. h5 {[%emt 0:00:21]} gxh5 {[%emt 0:00:00]} 28. Rxh5+ {[%emt 0:00:23]} Nxh5 {[%emt 0:00:00]} 29. Rh1 {[%emt 0:00:12]} Ra6 {[%emt 0:00:29]} 30. Rxh5+ {[%emt 0:00:40]} Rh6 {[%emt 0:00:47]} 31. Nf7+ {[%emt 0:01:03]} Kh7 {[%emt 0:00:07]} 32. Nxh6 {[%emt 0:01:54]} Bxh6 {[%emt 0:00:24]} 33. Be3 {[%emt 0:02:24]} Re6 {[%emt 0:01:58]} 34. Qxb5 {[%emt 0:00:54]} Qf7 {[%emt 0:03:16]} 35. Rh1 {[%emt 0:01:34]} Qf3 {[%emt 0:03:00]} 0-1

[Event "7th Leer Open-A 2024"]
[Site "Leer"]
[Date "2024.10.31"]
[Round "1.50"]
[White "Braun, Julian"]
[Black "Wiege, Andre"]
[Result "0-1"]
[ECO "C41"]
[WhiteElo "1851"]
[BlackElo "2031"]
[Annotator "RC"]
[PlyCount "94"]
[EventDate "2024.10.14"]
[EventType "swiss"]
[EventCountry "GER"]
[SourceTitle "playchess.com"]
[Source "ChessBase"]
[SourceQuality "1"]
[TimeControl "40/5400+30:900+30"]

1. e4 {[%emt 0:00:00]} d6 {[%emt 0:00:30]} 2. d4 {[%emt 0:00:04]} Nf6 {[%emt 0:00:18]} 3. Nc3 {[%emt 0:00:37]} Nbd7 {[%emt 0:00:30]} 4. Nf3 {[%emt 0:00:00]} e5 {[%emt 0:00:00]} 5. dxe5 {[%emt 0:01:59]} dxe5 {[%emt 0:00:11]} 6. Bc4 {[%emt 0:00:29]} Bc5 {[%emt 0:04:14]} 7. Bg5 {[%emt 0:03:09]} c6 {[%emt 0:00:39]} 8. O-O {[%emt 0:02:02]} b5 {[%emt 0:02:17]} 9. Bb3 {[%emt 0:01:56]} Qc7 {[%emt 0:01:06]} 10. Re1 {[%emt 0:10:58]} O-O {[%emt 0:04:27]} 11. a4 {[%emt 0:06:31]} b4 {[%emt 0:02:42]} 12. Na2 {[%emt 0:01:27]} a5 {[%emt 0:02:49]} 13. c3 {[%emt 0:07:57]} Be7 {[%emt 0:03:30]} 14. cxb4 {[%emt 0:01:29]} axb4 {[%emt 0:00:33]} 15. Rc1 {[%emt 0:01:22]} Bb7 {[%emt 0:14:19]} 16. Nh4 {[%emt 0:06:17]} g6 {[%emt 0:19:41]} 17. Qf3 {[%emt 0:02:56]} c5 {[%emt 0:07:31]} 18. Bh6 {[%emt 0:16:56]} Rfe8 {[%emt 0:04:45]} 19. Nxb4 {[%emt 0:12:40]} Qb6 {[%emt 0:29:58]} 20. Nc2 {[%emt 0:04:59]} c4 {[%emt 0:00:00]} 21. Bxc4 {[%emt 0:00:59]} Rxa4 {[%emt 0:00:00]} 22. b3 {[%emt 0:01:27]} Rxc4 {[%emt 0:00:00]} 23. bxc4 {[%emt 0:00:02]} Nxe4 {[%emt 0:00:00]} 24. Rb1 {[%emt 0:01:32]} Qa6 {[%emt 0:00:00]} 25. Rxb7 {[%emt 0:02:03]} Qxb7 {[%emt 0:00:00]} 26. Qxe4 {[%emt 0:00:04]} Qxe4 {[%emt 0:00:00]} 27. Rxe4 {[%emt 0:00:02]} f5 {[%emt 0:00:00]} 28. Nxf5 {[%emt 0:01:01]} gxf5 {[%emt 0:00:00]} 29. Re1 {[%emt 0:00:02]} Kf7 {[%emt 0:00:00]} 30. Bd2 {[%emt 0:01:18]} Rc8 {[%emt 0:00:00]} 31. Ne3 {[%emt 0:01:56]} Ke6 {[%emt 0:00:46]} 32. g3 {[%emt 0:01:40]} e4 {[%emt 0:01:24]} 33. f3 {[%emt 0:01:34]} Ne5 {[%emt 0:01:02]} 34. Kf2 {[%emt 0:03:02]} Nd3+ {[%emt 0:01:33]} 35. Ke2 {[%emt 0:00:10]} Nxe1 {[%emt 0:00:10]} 36. Bxe1 {[%emt 0:00:04]} Bc5 {[%emt 0:00:36]} 37. fxe4 {[%emt 0:00:39]} fxe4 {[%emt 0:00:21]} 38. Nd5 {[%emt 0:00:20]} Bd4 {[%emt 0:00:55]} 39. Nf4+ {[%emt 0:01:24]} Ke5 {[%emt 0:00:33]} 40. Bb4 {[%emt 0:02:30]} Rxc4 {[%emt 0:00:28]} 41. Bf8 {[%emt 0:15:08]} Kf5 {[%emt 0:16:20]} 42. h3 {[%emt 0:00:29]} Rc2+ {[%emt 0:01:07]} 43. Kf1 {[%emt 0:00:41]} e3 {[%emt 0:00:00]} 44. Ne2 {[%emt 0:00:00]} Ke4 {[%emt 0:00:00]} 45. Bd6 {[%emt 0:00:00]} Kd3 {[%emt 0:00:00]} 46. Nf4+ {[%emt 0:00:00]} Kd2 {[%emt 0:00:00]} 47. Bb4+ {[%emt 0:00:00]} Kd1 {[%emt 0:00:00]} 0-1

[Event "7th Leer Open-A 2024"]
[Site "Leer"]
[Date "2024.10.31"]
[Round "1.51"]
[White "Dornieden, Jonas"]
[Black "Schoene, Finn"]
[Result "1-0"]
[ECO "D31"]
[WhiteElo "2064"]
[BlackElo "1847"]
[Annotator "RC"]
[PlyCount "55"]
[EventDate "2024.10.14"]
[EventType "swiss"]
[EventCountry "GER"]
[SourceTitle "playchess.com"]
[Source "ChessBase"]
[SourceQuality "1"]
[TimeControl "40/5400+30:900+30"]

1. d4 {[%emt 0:00:03]} d5 {[%emt 0:00:05]} 2. c4 {[%emt 0:00:07]} e6 {[%emt 0:00:04]} 3. Nc3 {[%emt 0:00:07]} c6 {[%emt 0:00:03]} 4. Nf3 {[%emt 0:04:26]} dxc4 {[%emt 0:00:07]} 5. a4 {[%emt 0:00:37]} Bb4 {[%emt 0:00:14]} 6. Bd2 {[%emt 0:03:57]} b5 {[%emt 0:00:08]} 7. e3 {[%emt 1:24:43]} a5 {[%emt 0:00:46]} 8. axb5 {[%emt 0:00:00]} Bxc3 {[%emt 0:00:08]} 9. Bxc3 {[%emt 0:00:00]} cxb5 {[%emt 0:00:09]} 10. b3 {[%emt 0:00:00]} Bb7 {[%emt 0:00:10]} 11. bxc4 {[%emt 0:00:00]} b4 {[%emt 0:00:06]} 12. Bb2 {[%emt 0:00:00]} Nf6 {[%emt 0:00:13]} 13. Bd3 {[%emt 0:00:00]} O-O {[%emt 0:01:07]} 14. O-O {[%emt 0:00:00]} Nbd7 {[%emt 0:01:29]} 15. Re1 {[%emt 0:00:00]} Ne4 {[%emt 0:03:01]} 16. Qc2 {[%emt 0:00:00]} Ndf6 {[%emt 0:01:20]} 17. Ne5 {[%emt 0:00:00]} Qc7 {[%emt 0:03:05]} 18. f3 {[%emt 0:00:00]} Nd6 {[%emt 0:02:26]} 19. c5 {[%emt 0:00:00]} Nc8 {[%emt 0:02:10]} 20. e4 {[%emt 0:00:00]} Ne7 {[%emt 0:02:32]} 21. Nc4 {[%emt 0:00:00]} Nc6 {[%emt 0:02:58]} 22. Nb6 {[%emt 0:00:00]} Ra7 {[%emt 0:00:54]} 23. d5 {[%emt 0:00:00]} Nd8 {[%emt 0:05:31]} 24. Bxf6 {[%emt 0:00:00]} gxf6 {[%emt 0:00:09]} 25. Rec1 {[%emt 0:00:00]} Kh8 {[%emt 0:11:47]} 26. d6 {[%emt 0:00:00]} Qc6 {[%emt 0:00:32]} 27. Qe2 {[%emt 0:00:00]} Qe8 {[%emt 0:01:07]} 28. d7 {[%emt 0:00:00]} 1-0

[Event "7th Leer Open-A 2024"]
[Site "Leer"]
[Date "2024.10.31"]
[Round "1.52"]
[White "Gerhardt, Dirk"]
[Black "Rolf, Marco"]
[Result "0-1"]
[ECO "D02"]
[WhiteElo "1832"]
[BlackElo "2059"]
[Annotator "RC"]
[PlyCount "48"]
[EventDate "2024.10.14"]
[EventType "swiss"]
[EventCountry "GER"]
[SourceTitle "playchess.com"]
[Source "ChessBase"]
[SourceQuality "1"]
[TimeControl "40/5400+30:900+30"]

1. d4 {[%emt 0:03:41]} d5 {[%emt 0:00:10]} 2. Nf3 {[%emt 0:00:17]} Nf6 {[%emt 0:00:08]} 3. c3 {[%emt 0:00:53]} c5 {[%emt 0:01:09]} 4. a3 {[%emt 0:00:41]} e6 {[%emt 0:01:26]} 5. Bg5 {[%emt 0:03:01]} Qb6 {[%emt 0:01:44]} 6. b4 {[%emt 0:00:37]} cxd4 {[%emt 0:02:20]} 7. Qxd4 {[%emt 0:06:27]} Nbd7 {[%emt 0:03:09]} 8. Nbd2 {[%emt 0:05:23]} Be7 {[%emt 0:06:21]} 9. e3 {[%emt 0:02:13]} a5 {[%emt 0:01:09]} 10. b5 {[%emt 0:02:00]} O-O {[%emt 0:06:39]} 11. Be2 {[%emt 0:05:54]} Bc5 {[%emt 0:04:30]} 12. Qd3 {[%emt 0:02:58]} e5 {[%emt 0:06:16]} 13. Qc2 {[%emt 0:01:49]} Re8 {[%emt 0:09:31]} 14. O-O {[%emt 0:01:03]} e4 {[%emt 0:01:19]} 15. Nd4 {[%emt 0:00:31]} Ne5 {[%emt 0:01:53]} 16. N4b3 {[%emt 0:04:07]} Bf8 {[%emt 0:03:20]} 17. c4 {[%emt 0:00:22]} Bg4 {[%emt 0:07:19]} 18. c5 {[%emt 0:05:17]} Qc7 {[%emt 0:06:51]} 19. Bxg4 {[%emt 0:04:15]} Nfxg4 {[%emt 0:02:04]} 20. b6 {[%emt 0:01:01]} Qc8 {[%emt 0:04:03]} 21. Rfc1 {[%emt 0:02:18]} Nd3 {[%emt 0:02:16]} 22. Rf1 {[%emt 0:00:16]} a4 {[%emt 0:01:42]} 23. Nc1 {[%emt 0:00:24]} Nxc5 {[%emt 0:03:49]} 24. h3 {[%emt 0:03:30]} Ne5 {[%emt 0:23:22]} 0-1

[Event "7th Leer Open-A 2024"]
[Site "Leer"]
[Date "2024.10.31"]
[Round "1.53"]
[White "Hansch, Torsten"]
[Black "Goes, Carsten"]
[Result "1-0"]
[ECO "D26"]
[WhiteElo "2057"]
[BlackElo "1826"]
[Annotator "RC"]
[PlyCount "81"]
[EventDate "2024.10.14"]
[EventType "swiss"]
[EventCountry "GER"]
[SourceTitle "playchess.com"]
[Source "ChessBase"]
[SourceQuality "1"]
[TimeControl "40/5400+30:900+30"]

1. d4 {[%emt 0:00:05]} d5 {[%emt 0:00:12]} 2. c4 {[%emt 0:00:05]} dxc4 {[%emt 0:00:19]} 3. e3 {[%emt 0:00:08]} Nf6 {[%emt 0:00:18]} 4. Bxc4 {[%emt 0:00:08]} e6 {[%emt 0:00:07]} 5. Nf3 {[%emt 0:00:14]} a6 {[%emt 0:00:39]} 6. O-O {[%emt 0:00:24]} Nbd7 {[%emt 0:01:31]} 7. Nbd2 {[%emt 0:03:42]} c5 {[%emt 0:03:41]} 8. e4 {[%emt 0:00:36]} cxd4 {[%emt 0:10:02]} 9. e5 {[%emt 0:00:28]} Nd5 {[%emt 0:02:46]} 10. Nb3 {[%emt 0:01:08]} Be7 {[%emt 0:01:18]} 11. Nbxd4 {[%emt 0:03:51]} O-O {[%emt 0:01:23]} 12. Nf5 {[%emt 0:04:33]} exf5 {[%emt 0:03:47]} 13. Bxd5 {[%emt 0:00:40]} Nb6 {[%emt 0:04:34]} 14. Bb3 {[%emt 0:00:03]} Qxd1 {[%emt 0:07:17]} 15. Rxd1 {[%emt 0:00:02]} Be6 {[%emt 0:01:07]} 16. Be3 {[%emt 0:07:06]} Nc4 {[%emt 0:04:34]} 17. Bxc4 {[%emt 0:02:08]} Bxc4 {[%emt 0:00:03]} 18. Rd7 {[%emt 0:00:23]} Rfe8 {[%emt 0:01:43]} 19. b3 {[%emt 0:01:58]} Bb5 {[%emt 0:03:03]} 20. Rxb7 {[%emt 0:00:44]} Bc6 {[%emt 0:07:06]} 21. Rc7 {[%emt 0:01:11]} Bxf3 {[%emt 0:00:25]} 22. gxf3 {[%emt 0:00:03]} f6 {[%emt 0:08:30]} 23. exf6 {[%emt 0:07:16]} Bxf6 {[%emt 0:01:11]} 24. Rd1 {[%emt 0:00:14]} a5 {[%emt 0:06:19]} 25. Rd5 {[%emt 0:05:08]} Be5 {[%emt 0:04:20]} 26. Rcc5 {[%emt 0:01:18]} f4 {[%emt 0:03:40]} 27. Rxe5 {[%emt 0:02:22]} fxe3 {[%emt 0:02:47]} 28. Rxe8+ {[%emt 0:00:46]} Rxe8 {[%emt 0:00:13]} 29. fxe3 {[%emt 0:00:19]} Rxe3 {[%emt 0:00:10]} 30. Kf2 {[%emt 0:00:19]} Rd3 {[%emt 0:00:30]} 31. Rxa5 {[%emt 0:00:56]} Rd2+ {[%emt 0:00:21]} 32. Kg3 {[%emt 0:00:18]} Rb2 {[%emt 0:00:46]} 33. Ra7 {[%emt 0:00:39]} h5 {[%emt 0:00:11]} 34. f4 {[%emt 0:04:21]} Kh7 {[%emt 0:00:49]} 35. f5 {[%emt 0:01:01]} Kh6 {[%emt 0:00:38]} 36. h4 {[%emt 0:01:10]} Rd2 {[%emt 0:02:42]} 37. Ra4 {[%emt 0:03:23]} Rb2 {[%emt 0:00:29]} 38. Kf3 {[%emt 0:03:40]} Kh7 {[%emt 0:00:58]} 39. Ra8 {[%emt 0:00:48]} Rh2 {[%emt 0:00:28]} 40. Kg3 {[%emt 0:02:54]} Rb2 {[%emt 0:02:38]} 41. Kf4 {[%emt 0:16:20]} 1-0

[Event "7th Leer Open-A 2024"]
[Site "Leer"]
[Date "2024.10.31"]
[Round "1.54"]
[White "Graf, David"]
[Black "Dorendorf, Mika"]
[Result "1/2-1/2"]
[ECO "B23"]
[WhiteElo "1782"]
[BlackElo "2045"]
[Annotator "RC"]
[PlyCount "72"]
[EventDate "2024.10.14"]
[EventType "swiss"]
[EventCountry "GER"]
[SourceTitle "playchess.com"]
[Source "ChessBase"]
[SourceQuality "1"]
[TimeControl "40/5400+30:900+30"]

1. e4 {[%emt 0:00:31]} c5 {[%emt 0:00:09]} 2. Nc3 {[%emt 0:00:06]} Nc6 {[%emt 0:01:25]} 3. f4 {[%emt 0:00:29]} g6 {[%emt 0:01:15]} 4. Nf3 {[%emt 0:01:36]} Bg7 {[%emt 0:00:34]} 5. Bc4 {[%emt 0:00:07]} d6 {[%emt 0:01:07]} 6. O-O {[%emt 0:00:11]} Nh6 {[%emt 0:00:59]} 7. d3 {[%emt 0:06:02]} Na5 {[%emt 0:06:51]} 8. Bb5+ {[%emt 0:10:35]} Bd7 {[%emt 0:00:40]} 9. Bxd7+ {[%emt 0:00:15]} Qxd7 {[%emt 0:00:10]} 10. Bd2 {[%emt 0:01:05]} Nc6 {[%emt 0:00:11]} 11. Qe1 {[%emt 0:06:01]} Nd4 {[%emt 0:04:05]} 12. Rc1 {[%emt 0:02:22]} b5 {[%emt 0:02:39]} 13. b3 {[%emt 0:16:48]} b4 {[%emt 0:01:54]} 14. Na4 {[%emt 0:05:22]} O-O {[%emt 0:02:35]} 15. h3 {[%emt 0:04:47]} Nxf3+ {[%emt 0:02:49]} 16. Rxf3 {[%emt 0:00:23]} f6 {[%emt 0:03:10]} 17. Kh1 {[%emt 0:16:44]} Nf7 {[%emt 0:00:54]} 18. Qh4 {[%emt 0:10:35]} f5 {[%emt 0:06:44]} 19. Re1 {[%emt 0:02:55]} e5 {[%emt 0:02:13]} 20. exf5 {[%emt 0:01:03]} gxf5 {[%emt 0:02:08]} 21. Rg3 {[%emt 0:01:13]} Kh8 {[%emt 0:01:03]} 22. Qh5 {[%emt 0:01:22]} Rae8 {[%emt 0:02:52]} 23. fxe5 {[%emt 0:02:46]} Rxe5 {[%emt 0:01:33]} 24. Rxe5 {[%emt 0:00:20]} Bxe5 {[%emt 0:01:35]} 25. Rf3 {[%emt 0:00:14]} Nd8 {[%emt 0:00:52]} 26. Bh6 {[%emt 0:04:04]} Rf7 {[%emt 0:00:53]} 27. Bf4 {[%emt 0:01:17]} Bg7 {[%emt 0:01:54]} 28. Re3 {[%emt 0:00:56]} Ne6 {[%emt 0:00:38]} 29. Bxd6 {[%emt 0:04:10]} Bd4 {[%emt 0:05:17]} 30. Be5+ {[%emt 0:00:07]} Ng7 {[%emt 0:01:34]} 31. Bxg7+ {[%emt 0:00:30]} Rxg7 {[%emt 0:00:09]} 32. Qe8+ {[%emt 0:00:57]} Qxe8 {[%emt 0:00:02]} 33. Rxe8+ {[%emt 0:00:08]} Rg8 {[%emt 0:00:02]} 34. Re7 {[%emt 0:00:44]} Rg7 {[%emt 0:00:13]} 35. Re8+ {[%emt 0:00:04]} Rg8 {[%emt 0:00:04]} 36. Re7 {[%emt 0:00:35]} Rg7 {[%emt 0:00:05]} 1/2-1/2

[Event "7th Leer Open-A 2024"]
[Site "Leer"]
[Date "2024.10.31"]
[Round "1.55"]
[White "Udelnov, Valentin"]
[Black "Kutlar, Aras"]
[Result "1-0"]
[ECO "B36"]
[WhiteElo "2045"]
[BlackElo "1759"]
[Annotator "RC"]
[PlyCount "71"]
[EventDate "2024.10.14"]
[EventType "swiss"]
[EventCountry "GER"]
[SourceTitle "playchess.com"]
[Source "ChessBase"]
[SourceQuality "1"]
[TimeControl "40/5400+30:900+30"]

1. e4 {[%emt 0:00:03]} c5 {[%emt 0:00:17]} 2. Nf3 {[%emt 0:00:04]} g6 {[%emt 0:00:18]} 3. c4 {[%emt 0:00:09]} Nc6 {[%emt 0:00:33]} 4. d4 {[%emt 0:00:07]} cxd4 {[%emt 0:00:08]} 5. Nxd4 {[%emt 0:00:02]} Nf6 {[%emt 0:00:27]} 6. Nc3 {[%emt 0:00:08]} Nxd4 {[%emt 0:00:27]} 7. Qxd4 {[%emt 0:00:06]} d6 {[%emt 0:00:38]} 8. Be3 {[%emt 0:05:02]} Bg7 {[%emt 0:01:11]} 9. Be2 {[%emt 0:00:09]} O-O {[%emt 0:00:30]} 10. Qd3 {[%emt 0:03:29]} Be6 {[%emt 0:01:19]} 11. O-O {[%emt 0:00:31]} Qa5 {[%emt 0:01:11]} 12. Bd4 {[%emt 0:05:43]} Rfc8 {[%emt 0:01:26]} 13. b3 {[%emt 0:00:39]} Bd7 {[%emt 0:10:51]} 14. Rfe1 {[%emt 0:07:11]} Rab8 {[%emt 0:02:37]} 15. Bf1 {[%emt 0:05:32]} a6 {[%emt 0:03:57]} 16. a4 {[%emt 0:07:41]} Qh5 {[%emt 0:11:33]} 17. h3 {[%emt 0:04:02]} Bc6 {[%emt 0:02:07]} 18. Rad1 {[%emt 0:08:17]} Kf8 {[%emt 0:06:07]} 19. e5 {[%emt 0:05:39]} Ne8 {[%emt 0:02:42]} 20. e6 {[%emt 0:04:01]} Nf6 {[%emt 0:01:53]} 21. exf7 {[%emt 0:00:30]} Kxf7 {[%emt 0:00:45]} 22. b4 {[%emt 0:07:30]} Qf5 {[%emt 0:06:36]} 23. Qe3 {[%emt 0:02:07]} Re8 {[%emt 0:02:20]} 24. b5 {[%emt 0:04:01]} axb5 {[%emt 0:00:36]} 25. Bd3 {[%emt 0:07:47]} Qh5 {[%emt 0:02:10]} 26. cxb5 {[%emt 0:00:10]} Bd7 {[%emt 0:00:28]} 27. Bc4+ {[%emt 0:00:54]} e6 {[%emt 0:00:56]} 28. Ba7 {[%emt 0:02:39]} Rbc8 {[%emt 0:00:41]} 29. Be2 {[%emt 0:03:43]} Qe5 {[%emt 0:00:46]} 30. Qxe5 {[%emt 0:02:05]} dxe5 {[%emt 0:00:20]} 31. Rd3 {[%emt 0:01:39]} Re7 {[%emt 0:05:08]} 32. Bf3 {[%emt 0:00:35]} Be8 {[%emt 0:02:17]} 33. Red1 {[%emt 0:01:32]} Rd7 {[%emt 0:01:37]} 34. Rxd7+ {[%emt 0:01:06]} Bxd7 {[%emt 0:00:23]} 35. Ne4 {[%emt 0:00:23]} Nxe4 {[%emt 0:01:41]} 36. Rxd7+ {[%emt 0:00:35]} 1-0

[Event "7th Leer Open-A 2024"]
[Site "Leer"]
[Date "2024.10.31"]
[Round "1.56"]
[White "Haertel, Leon"]
[Black "Capelja, Christian"]
[Result "0-1"]
[ECO "E46"]
[WhiteElo "1816"]
[BlackElo "2023"]
[Annotator "RC"]
[PlyCount "116"]
[EventDate "2024.10.14"]
[EventType "swiss"]
[EventCountry "GER"]
[SourceTitle "playchess.com"]
[Source "ChessBase"]
[SourceQuality "1"]
[TimeControl "40/5400+30:900+30"]

1. d4 {[%emt 0:00:02]} Nf6 {[%emt 0:00:05]} 2. c4 {[%emt 0:00:05]} e6 {[%emt 0:00:04]} 3. Nc3 {[%emt 0:00:05]} Bb4 {[%emt 0:00:13]} 4. e3 {[%emt 0:00:30]} O-O {[%emt 0:00:15]} 5. Qc2 {[%emt 0:00:38]} d5 {[%emt 0:01:23]} 6. Bd2 {[%emt 0:03:47]} b6 {[%emt 0:03:43]} 7. cxd5 {[%emt 0:05:04]} exd5 {[%emt 0:00:16]} 8. Nf3 {[%emt 0:00:29]} c5 {[%emt 0:02:31]} 9. Bd3 {[%emt 0:06:26]} c4 {[%emt 0:08:09]} 10. Bf5 {[%emt 0:11:07]} Bxf5 {[%emt 0:06:18]} 11. Qxf5 {[%emt 0:00:29]} Qd7 {[%emt 0:00:24]} 12. Qc2 {[%emt 0:06:14]} Nc6 {[%emt 0:00:52]} 13. O-O {[%emt 0:00:57]} Rfe8 {[%emt 0:06:29]} 14. b3 {[%emt 0:11:37]} Bxc3 {[%emt 0:04:01]} 15. Bxc3 {[%emt 0:02:11]} b5 {[%emt 0:00:11]} 16. bxc4 {[%emt 0:03:29]} bxc4 {[%emt 0:02:07]} 17. Ne5 {[%emt 0:02:49]} Nxe5 {[%emt 0:05:46]} 18. dxe5 {[%emt 0:00:39]} Ng4 {[%emt 0:00:52]} 19. Rad1 {[%emt 0:03:49]} Nxe5 {[%emt 0:12:33]} 20. Bxe5 {[%emt 0:01:00]} Rxe5 {[%emt 0:00:08]} 21. Qxc4 {[%emt 0:00:08]} dxc4 {[%emt 0:00:08]} 22. Rxd7 {[%emt 0:00:05]} Rc5 {[%emt 0:00:09]} 23. g3 {[%emt 0:03:46]} c3 {[%emt 0:02:01]} 24. Rc1 {[%emt 0:07:46]} c2 {[%emt 0:02:42]} 25. Kf1 {[%emt 0:03:11]} h5 {[%emt 0:06:15]} 26. Ke2 {[%emt 0:01:03]} a5 {[%emt 0:01:16]} 27. Rd2 {[%emt 0:03:01]} Rac8 {[%emt 0:00:16]} 28. Kd3 {[%emt 0:01:19]} Rc3+ {[%emt 0:01:09]} 29. Ke2 {[%emt 0:01:25]} g6 {[%emt 0:03:46]} 30. Rd3 {[%emt 0:02:11]} R3c5 {[%emt 0:02:00]} 31. Kd2 {[%emt 0:01:41]} Kg7 {[%emt 0:01:21]} 32. Rd4 {[%emt 0:01:04]} R8c7 {[%emt 0:01:51]} 33. h4 {[%emt 0:01:33]} Kf6 {[%emt 0:03:20]} 34. Ke2 {[%emt 0:04:13]} Ke5 {[%emt 0:00:48]} 35. Kd2 {[%emt 0:00:31]} f6 {[%emt 0:08:35]} 36. f3 {[%emt 0:04:50]} g5 {[%emt 0:05:15]} 37. Re4+ {[%emt 0:01:32]} Kf5 {[%emt 0:03:35]} 38. Rd4 {[%emt 0:01:23]} gxh4 {[%emt 0:03:29]} 39. gxh4 {[%emt 0:02:27]} Rg7 {[%emt 0:01:49]} 40. Kd3 {[%emt 0:01:49]} Rg2 {[%emt 0:01:48]} 41. Rf4+ {[%emt 0:17:55]} Kg6 {[%emt 0:04:55]} 42. Kd4 {[%emt 0:00:00]} Rc6 {[%emt 0:02:19]} 43. Kd3 {[%emt 0:00:00]} Rh2 {[%emt 0:03:14]} 44. a4 {[%emt 0:00:00]} Rd6+ {[%emt 0:04:32]} 45. Kc3 {[%emt 0:00:00]} Re2 {[%emt 0:02:38]} 46. Re4 {[%emt 0:00:00]} Kf7 {[%emt 0:01:01]} 47. f4 {[%emt 0:01:40]} Kg6 {[%emt 0:01:52]} 48. Re7 {[%emt 0:01:22]} Kf5 {[%emt 0:00:45]} 49. Kb2 {[%emt 0:00:00]} Rc6 {[%emt 0:00:00]} 50. Rb7 {[%emt 0:00:00]} Rc5 {[%emt 0:00:00]} 51. Rb5 {[%emt 0:00:00]} Rxb5+ {[%emt 0:00:00]} 52. axb5 {[%emt 0:00:00]} Rxe3 {[%emt 0:00:00]} 53. Rxc2 {[%emt 0:00:44]} Kxf4 {[%emt 0:00:00]} 54. Rf2+ {[%emt 0:00:46]} Ke5 {[%emt 0:00:04]} 55. b6 {[%emt 0:00:22]} Re4 {[%emt 0:00:12]} 56. Ka3 {[%emt 0:00:27]} Rb4 {[%emt 0:00:25]} 57. Rb2 {[%emt 0:00:05]} Rxb2 {[%emt 0:00:05]} 58. Kxb2 {[%emt 0:00:08]} Kd6 {[%emt 0:00:03]} 0-1